[Event "Championnat d'Europe de Blitz"]
[Date "2024.12.09"]
[White "Vyval, Volodymyr"]
[Black "Janik, Igor"]
[WhiteElo "2269"]
[BlackElo "2515"]
[Round "11.39"]
[Result "1/2-1/2"]
[TimeControl "180+2"]

1. e4 {[%clk 00:03:03]} c6 {[%clk 00:03:04]} 2. d4 {[%emt 00:00:03] [%clk
00:03:04]} d5 {[%clk 00:03:05]} 3. e5 {[%clk 00:03:06]} c5 {[%clk 00:03:07]} 4.
dxc5 {[%emt 00:00:04] [%clk 00:03:04]} Nc6 {[%clk 00:03:08]} 5. f4 {[%emt
00:00:01] [%clk 00:03:04]} h5 {[%clk 00:03:09]} 6. Be3 {[%emt 00:00:03] [%clk
00:03:03]} Bg4 {[%emt 00:00:01] [%clk 00:03:10]} 7. Qd2 {[%emt 00:00:07] [%clk
00:02:57]} e6 {[%emt 00:00:04] [%clk 00:03:09]} 8. c3 {[%emt 00:00:08] [%clk
00:02:51]} Nge7 {[%clk 00:03:10]} 9. h3 {[%emt 00:00:03] [%clk 00:02:51]} Bf5
{[%clk 00:03:11]} 10. Nf3 {[%emt 00:00:06] [%clk 00:02:46]} Be4 {[%emt 00:00:06]
[%clk 00:03:08]} 11. Ng5 {[%emt 00:00:01] [%clk 00:02:46]} Bg6 {[%emt 00:00:01]
[%clk 00:03:09]} 12. Na3 {[%emt 00:00:06] [%clk 00:02:42]} Nf5 {[%clk 00:03:09]}
13. Bf2 {[%emt 00:00:03] [%clk 00:02:42]} Be7 {[%clk 00:03:11]} 14. Nf3 {[%emt
00:00:04] [%clk 00:02:41]} a6 {[%emt 00:00:06] [%clk 00:03:07]} 15. Bd3 {[%emt
00:00:11] [%clk 00:02:31]} Qa5 {[%emt 00:00:08] [%clk 00:03:02]} 16. O-O {[%emt
00:00:10] [%clk 00:02:24]} Bxc5 {[%emt 00:00:01] [%clk 00:03:03]} 17. Nc2 {[%emt
00:00:11] [%clk 00:02:14]} Qb6 {[%emt 00:00:06] [%clk 00:02:59]} 18. Bxc5 {[%emt
00:00:05] [%clk 00:02:11]} Qxc5+ {[%emt 00:00:01] [%clk 00:03:00]} 19. Qf2
{[%emt 00:00:02] [%clk 00:02:11]} Qxf2+ {[%emt 00:00:06] [%clk 00:02:55]} 20.
Kxf2 {[%emt 00:00:02] [%clk 00:02:11]} Nfe7 {[%emt 00:00:05] [%clk 00:02:52]}
21. Bxg6 {[%emt 00:00:22] [%clk 00:01:52]} Nxg6 {[%clk 00:02:53]} 22. Ke3 {[%emt
00:00:01] [%clk 00:01:53]} h4 {[%emt 00:00:01] [%clk 00:02:54]} 23. Ncd4 {[%emt
00:00:02] [%clk 00:01:53]} Nge7 {[%emt 00:00:01] [%clk 00:02:55]} 24. Rad1
{[%emt 00:00:11] [%clk 00:01:44]} Rc8 {[%clk 00:02:56]} 25. Nxc6 {[%emt
00:00:10] [%clk 00:01:36]} Nf5+ {[%emt 00:00:04] [%clk 00:02:54]} 26. Kf2 {[%emt
00:00:02] [%clk 00:01:35]} bxc6 {[%emt 00:00:02] [%clk 00:02:55]} 27. Nd4 {[%emt
00:00:07] [%clk 00:01:30]} Ng3 {[%emt 00:00:01] [%clk 00:02:57]} 28. Rfe1 {[%emt
00:00:05] [%clk 00:01:26]} Kd7 {[%emt 00:00:03] [%clk 00:02:55]} 29. Nf3 {[%emt
00:00:25] [%clk 00:01:03]} Ke7 {[%clk 00:02:57]} 30. Rd4 {[%emt 00:00:14] [%clk
00:00:51]} Rb8 {[%emt 00:00:02] [%clk 00:02:58]} 31. b3 {[%emt 00:00:03] [%clk
00:00:50]} Ne4+ {[%emt 00:00:03] [%clk 00:02:57]} 32. Ke3 {[%emt 00:00:07] [%clk
00:00:44]} Nxc3 {[%emt 00:00:04] [%clk 00:02:55]} 33. Rc1 {[%emt 00:00:09] [%clk
00:00:37]} c5 {[%clk 00:02:57]} 34. Rd2 {[%emt 00:00:04] [%clk 00:00:35]} Ne4
{[%emt 00:00:01] [%clk 00:02:58]} 35. Rdc2 {[%emt 00:00:04] [%clk 00:00:33]}
Rbc8 {[%emt 00:00:03] [%clk 00:02:57]} 36. Nd2 {[%emt 00:00:04] [%clk 00:00:30]}
Nxd2 {[%emt 00:00:03] [%clk 00:02:57]} 37. Kxd2 {[%clk 00:00:31]} Rh6 {[%emt
00:00:03] [%clk 00:02:56]} 38. Ke3 {[%emt 00:00:03] [%clk 00:00:30]} Rg6 {[%clk
00:02:57]} 39. Kf2 {[%emt 00:00:05] [%clk 00:00:27]} Rg3 {[%emt 00:00:14] [%clk
00:02:44]} 40. Rxc5 {[%emt 00:00:02] [%clk 00:00:28]} Rxc5 {[%clk 00:02:45]} 41.
Rxc5 {[%emt 00:00:02] [%clk 00:00:29]} Rd3 {[%clk 00:02:46]} 42. Ra5 {[%emt
00:00:02] [%clk 00:00:29]} f6 {[%emt 00:00:09] [%clk 00:02:39]} 43. exf6+ {[%emt
00:00:02] [%clk 00:00:30]} Kxf6 {[%clk 00:02:40]} 44. Rxa6 {[%emt 00:00:01]} Kf5
{[%clk 00:02:41]} 45. Ra7 {[%emt 00:00:03] [%clk 00:00:30]} g6 {[%emt 00:00:04]
[%clk 00:02:39]} 46. b4 {[%emt 00:00:07] [%clk 00:00:25]} d4 {[%emt 00:00:04]
[%clk 00:02:37]} 47. b5 {[%emt 00:00:02] [%clk 00:00:25]} Kxf4 {[%emt 00:00:03]
[%clk 00:02:35]} 48. b6 {[%emt 00:00:04] [%clk 00:00:24]} Rd2+ {[%emt 00:00:15]}
49. Kg1 {[%emt 00:00:02] [%clk 00:00:09]} Rb2 {[%emt 00:00:01] [%clk 00:02:38]}
50. b7 {[%emt 00:00:03] [%clk 00:00:08]} d3 {[%emt 00:00:09] [%clk 00:02:30]}
51. Ra3 {[%emt 00:00:02] [%clk 00:00:08]} Rb1+ {[%emt 00:00:17] [%clk 00:02:15]}
52. Kh2 {[%clk 00:00:09]} Rxb7 {[%emt 00:00:10] [%clk 00:02:07]} 53. Rxd3 {[%clk
00:00:10]} e5 {[%clk 00:02:08]} 54. Rf3+ {[%emt 00:00:03] [%clk 00:00:09]} Ke4
{[%emt 00:00:01] [%clk 00:02:09]} 55. a4 {[%clk 00:00:11]} Ra7 {[%emt 00:00:09]
[%clk 00:02:03]} 56. Ra3 {[%clk 00:00:12]} Ra5 {[%clk 00:02:04]} 57. Kg1 {[%clk
00:00:13]} Kd4 {[%clk 00:02:05]} 58. Kf2 {[%clk 00:00:14]} e4 {[%clk 00:02:07]}
59. Ke2 {[%clk 00:00:15]} Rg5 {[%emt 00:00:04] [%clk 00:02:04]} 60. Kf1 {[%emt
00:00:02] [%clk 00:00:15]} Ra5 {[%emt 00:00:09] [%clk 00:01:57]} 61. Ke2 {[%emt
00:00:03] [%clk 00:00:14]} Rg5 {[%emt 00:00:23] [%clk 00:01:37]} 62. Kf1 {[%clk
00:00:15]} Ra5 {[%emt 00:00:28] [%clk 00:01:10]} 63. Ke2 {[%clk 00:00:17]} g5
{[%clk 00:01:12]} 64. Kf2 {[%emt 00:00:03] [%clk 00:00:15]} Rf5+ {[%emt
00:00:06] [%clk 00:01:08]} 65. Ke2 {[%clk 00:00:16]} Ra5 {[%emt 00:00:04] [%clk
00:01:07]} 66. Kd2 {[%emt 00:00:07] [%clk 00:00:11]} Ke5 {[%emt 00:00:24] [%clk
00:00:44]} 67. Ke3 {[%clk 00:00:12]} Kf5 {[%clk 00:00:46]} 68. Ra1 {[%emt
00:00:03] [%clk 00:00:11]} Ke5 {[%emt 00:00:01] [%clk 00:00:47]} 69. Ra2 {[%emt
00:00:02] [%clk 00:00:11]} Kf5 {[%emt 00:00:01] [%clk 00:00:48]} 70. Ra1 {[%clk
00:00:13]} Ke5 {[%emt 00:00:01] [%clk 00:00:49]} 71. Ra2 {[%emt 00:00:02] [%clk
00:00:12]} Kf5 {[%clk 00:00:50]} 72. Ra1 {[%emt 00:00:07] [%clk 00:00:08]} Ke5
{[%emt 00:00:01] [%clk 00:00:50]} 73. Ra3 {[%emt 00:00:01] [%clk 00:00:08]} Kf5
{[%emt 00:00:02] [%clk 00:00:51]} 74. Kd4 {[%emt 00:00:03] [%clk 00:00:02]} Kf4
{[%emt 00:00:08] [%clk 00:03:02]} 1/2-1/2

[Site "Europe Echecs"]

[Event "Championnat d'Europe de Blitz"]
[Date "2024.12.09"]
[White "Druckenthaner, Andreas"]
[Black "Subelj, Jan"]
[WhiteElo "2206"]
[BlackElo "2526"]
[Round "11.40"]
[Result "0-1"]
[TimeControl "180+2"]

1. e4 {[%emt 00:00:38] [%clk 00:02:26]} e5 {[%emt 00:00:31] [%clk 00:02:33]} 2.
Nf3 {[%emt 00:00:02] [%clk 00:02:27]} Nc6 {[%emt 00:00:01] [%clk 00:02:34]} 3.
Bc4 {[%emt 00:00:02] [%clk 00:02:27]} Bc5 {[%emt 00:00:02] [%clk 00:02:34]} 4.
d3 {[%emt 00:00:03] [%clk 00:02:26]} d6 {[%emt 00:00:02] [%clk 00:02:34]} 5. Be3
{[%emt 00:00:03] [%clk 00:02:25]} Bxe3 {[%emt 00:00:11] [%clk 00:02:25]} 6. fxe3
{[%emt 00:00:01] [%clk 00:02:25]} Na5 {[%emt 00:00:02] [%clk 00:02:26]} 7. Bb3
{[%emt 00:00:03] [%clk 00:02:24]} Nxb3 {[%emt 00:00:02] [%clk 00:02:26]} 8. axb3
{[%emt 00:00:01] [%clk 00:02:25]} Ne7 {[%emt 00:00:02] [%clk 00:02:26]} 9. O-O
{[%emt 00:00:05] [%clk 00:02:22]} O-O {[%emt 00:00:02] [%clk 00:02:26]} 10. Nc3
{[%emt 00:00:06] [%clk 00:02:18]} h6 {[%emt 00:00:04] [%clk 00:02:24]} 11. Qe1
{[%emt 00:00:04] [%clk 00:02:16]} f5 {[%emt 00:00:03] [%clk 00:02:23]} 12. exf5
{[%emt 00:00:04] [%clk 00:02:13]} Bxf5 {[%emt 00:00:02] [%clk 00:02:24]} 13. Nh4
{[%emt 00:00:05] [%clk 00:02:10]} Be6 {[%emt 00:00:02] [%clk 00:02:24]} 14.
Rxf8+ {[%emt 00:00:04] [%clk 00:02:08]} Qxf8 {[%emt 00:00:02] [%clk 00:02:24]}
15. Qg3 {[%emt 00:00:09] [%clk 00:02:00]} a6 {[%emt 00:00:56] [%clk 00:01:31]}
16. Rf1 {[%emt 00:00:19] [%clk 00:01:42]} Qd8 {[%emt 00:00:02] [%clk 00:01:31]}
17. Ng6 {[%emt 00:00:16] [%clk 00:01:28]} Nxg6 {[%emt 00:00:05] [%clk 00:01:28]}
18. Qxg6 {[%emt 00:00:02] [%clk 00:01:28]} Qe7 {[%emt 00:00:01] [%clk 00:01:29]}
19. Ne4 {[%emt 00:00:09] [%clk 00:01:21]} Rf8 {[%emt 00:00:03] [%clk 00:01:28]}
20. Rxf8+ {[%emt 00:00:12] [%clk 00:01:11]} Kxf8 {[%emt 00:00:01] [%clk
00:01:28]} 21. Qg3 {[%emt 00:00:12] [%clk 00:01:01]} Qf7 {[%emt 00:00:02] [%clk
00:01:28]} 22. Qf2 {[%emt 00:00:04] [%clk 00:00:59]} Bd5 {[%emt 00:00:03] [%clk
00:01:27]} 23. Qxf7+ {[%emt 00:00:02] [%clk 00:00:58]} Kxf7 {[%emt 00:00:02]
[%clk 00:01:28]} 24. Nc3 {[%emt 00:00:02] [%clk 00:00:59]} Be6 {[%emt 00:00:01]
[%clk 00:01:29]} 25. Kf2 {[%emt 00:00:01] [%clk 00:00:59]} d5 {[%emt 00:00:06]
[%clk 00:01:25]} 26. d4 {[%emt 00:00:03] [%clk 00:00:59]} Kf6 {[%emt 00:00:07]
[%clk 00:01:20]} 27. Kf3 {[%emt 00:00:03] [%clk 00:00:57]} c6 {[%emt 00:00:03]
[%clk 00:01:19]} 28. h3 {[%emt 00:00:01] [%clk 00:00:57]} Bf5 {[%emt 00:00:01]
[%clk 00:01:20]} 29. e4 {[%emt 00:00:10] [%clk 00:00:50]} exd4 {[%emt 00:00:01]
[%clk 00:01:21]} 30. exf5 {[%emt 00:00:15] [%clk 00:00:37]} dxc3 {[%emt
00:00:02] [%clk 00:01:22]} 31. bxc3 {[%clk 00:00:38]} Kxf5 {[%emt 00:00:01]
[%clk 00:01:23]} 32. g4+ {[%clk 00:00:39]} Ke5 {[%emt 00:00:01] [%clk 00:01:24]}
33. Ke3 {[%clk 00:00:40]} g5 {[%emt 00:00:01] [%clk 00:01:25]} 34. b4 {[%emt
00:00:03] [%clk 00:00:39]} b6 {[%emt 00:00:02] [%clk 00:01:25]} 35. Kd3 {[%emt
00:00:10] [%clk 00:00:31]} a5 {[%emt 00:00:01] [%clk 00:01:26]} 36. bxa5 {[%emt
00:00:02] [%clk 00:00:31]} bxa5 {[%clk 00:01:27]} 37. c4 {[%clk 00:00:32]} d4
{[%emt 00:00:02] [%clk 00:01:26]} 38. c3 {[%emt 00:00:03] [%clk 00:00:31]} dxc3
{[%emt 00:00:02] [%clk 00:01:27]} 39. Kxc3 {[%clk 00:00:32]} c5 {[%clk
00:01:28]} 0-1

[Site "Europe Echecs"]

[Event "Championnat d'Europe de Blitz"]
[Date "2024.12.09"]
[White "Laurusas, Tomas"]
[Black "Trapp, Maximilian"]
[WhiteElo "2578"]
[BlackElo "2050"]
[Round "11.41"]
[Result "1-0"]
[TimeControl "180+2"]

1. d4 {[%emt 00:14:22] [%clk 00:03:03]} d5 {[%emt 00:00:04] [%clk 00:03:02]} 2.
c4 {[%clk 00:03:05]} e6 {[%clk 00:03:03]} 3. Nf3 {[%emt 00:00:01] [%clk
00:03:06]} Nf6 {[%emt 00:00:01] [%clk 00:03:03]} 4. Nc3 {[%clk 00:03:07]} Be7
{[%emt 00:00:01] [%clk 00:03:04]} 5. Bg5 {[%emt 00:00:02] [%clk 00:03:06]} O-O
{[%emt 00:00:03] [%clk 00:03:04]} 6. e3 {[%clk 00:03:07]} c6 {[%emt 00:00:06]
[%clk 00:03:00]} 7. Rc1 {[%emt 00:00:02] [%clk 00:03:08]} Nbd7 {[%emt 00:00:04]
[%clk 00:02:58]} 8. a3 {[%emt 00:00:02] [%clk 00:03:08]} Re8 {[%emt 00:00:08]
[%clk 00:02:51]} 9. h3 {[%emt 00:00:05] [%clk 00:03:04]} a6 {[%emt 00:00:19]
[%clk 00:02:34]} 10. cxd5 {[%clk 00:03:00]} exd5 {[%emt 00:00:09] [%clk
00:02:34]} 11. Bf4 {[%clk 00:03:01]} Nf8 {[%emt 00:00:02] [%clk 00:02:35]} 12.
Bd3 {[%clk 00:03:00]} Ng6 {[%emt 00:00:07] [%clk 00:02:32]} 13. Bh2 {[%clk
00:03:01]} Bd6 {[%emt 00:00:02] [%clk 00:02:33]} 14. Bxd6 {[%clk 00:03:02]} Qxd6
{[%emt 00:00:02] [%clk 00:02:34]} 15. O-O {[%clk 00:03:03]} Bd7 {[%emt 00:00:09]
[%clk 00:02:28]} 16. Qc2 {[%emt 00:00:03]} Rad8 {[%clk 00:02:27]} 17. b4 {[%clk
00:03:05]} a5 {[%emt 00:00:19] [%clk 00:02:11]} 18. Rb1 {[%clk 00:03:07]} axb4
{[%emt 00:00:02] [%clk 00:02:11]} 19. axb4 {[%emt 00:00:02] [%clk 00:03:06]} b5
{[%clk 00:02:13]} 20. Nd2 {[%emt 00:00:01] [%clk 00:03:07]} Be6 {[%emt 00:00:14]
[%clk 00:02:00]} 21. Nb3 {[%emt 00:00:01] [%clk 00:03:08]} Nd7 {[%emt 00:00:01]
[%clk 00:02:01]} 22. Nc5 {[%emt 00:00:05] [%clk 00:03:06]} Nxc5 {[%emt 00:00:03]
[%clk 00:01:59]} 23. dxc5 {[%clk 00:03:07]} Qe5 {[%emt 00:00:04] [%clk
00:01:57]} 24. Ne2 {[%emt 00:00:02] [%clk 00:03:07]} Bd7 {[%emt 00:00:15] [%clk
00:01:44]} 25. Bxg6 {[%emt 00:00:02] [%clk 00:03:08]} hxg6 {[%emt 00:00:01]
[%clk 00:01:45]} 26. Ra1 {[%clk 00:03:09]} Ra8 {[%clk 00:01:46]} 27. Qc3 {[%emt
00:00:02] [%clk 00:03:09]} Qg5 {[%emt 00:00:07] [%clk 00:01:41]} 28. Kh2 {[%emt
00:00:11] [%clk 00:03:00]} Qh5 {[%emt 00:00:05] [%clk 00:01:38]} 29. Nd4 {[%emt
00:00:20] [%clk 00:02:42]} g5 {[%clk 00:01:39]} 30. Kg1 {[%clk 00:02:43]} g4
{[%emt 00:00:01] [%clk 00:01:40]} 31. hxg4 {[%clk 00:02:44]} Qxg4 {[%emt
00:00:02] [%clk 00:01:41]} 32. Rxa8 {[%emt 00:00:04] [%clk 00:02:43]} Rxa8
{[%emt 00:00:01] [%clk 00:01:42]} 33. Ra1 {[%emt 00:00:01] [%clk 00:02:43]} Rc8
{[%emt 00:00:06] [%clk 00:01:38]} 34. Qc2 {[%emt 00:00:04] [%clk 00:02:41]} Qg5
{[%emt 00:00:19] [%clk 00:01:20]} 35. Ra6 {[%emt 00:00:08] [%clk 00:02:36]} Bh3
{[%emt 00:00:01] [%clk 00:01:20]} 36. f4 {[%clk 00:02:37]} Qg3 {[%emt 00:00:05]
[%clk 00:01:18]} 37. Qf2 {[%emt 00:00:01] [%clk 00:02:38]} Qg6 {[%clk 00:01:19]}
38. Rxc6 {[%emt 00:00:13] [%clk 00:02:27]} Rxc6 {[%emt 00:00:07] [%clk
00:01:14]} 39. Nxc6 {[%clk 00:02:28]} Qxc6 {[%emt 00:00:16] [%clk 00:01:00]} 40.
gxh3 {[%clk 00:02:30]} Qg6+ {[%emt 00:00:05] [%clk 00:00:57]} 41. Kh2 {[%emt
00:00:05] [%clk 00:02:27]} Qb1 {[%emt 00:00:07] [%clk 00:00:51]} 42. Qd2 {[%emt
00:00:03] [%clk 00:02:26]} Qb3 {[%emt 00:00:04] [%clk 00:00:50]} 43. Qc1 {[%emt
00:00:14] [%clk 00:02:14]} d4 {[%clk 00:00:51]} 44. c6 {[%emt 00:01:00] [%clk
00:01:16]} Qa2+ {[%emt 00:00:12] [%clk 00:00:41]} 45. Kh1 {[%emt 00:01:03] [%clk
00:00:16]} Qd5+ {[%emt 00:00:01] [%clk 00:00:42]} 46. Kg1 {[%clk 00:00:17]} Qf3
{[%emt 00:00:02] [%clk 00:00:43]} 47. c7 {[%clk 00:00:19]} Qg3+ {[%emt 00:00:06]
[%clk 00:00:39]} 48. Kf1 {[%clk 00:00:20]} Qxh3+ {[%emt 00:00:01] [%clk
00:00:40]} 49. Ke1 {[%clk 00:00:22]} Qg3+ {[%emt 00:00:14] [%clk 00:00:28]} 50.
Ke2 {[%emt 00:00:06] [%clk 00:00:18]} d3+ {[%emt 00:00:13] [%clk 00:00:17]} 51.
Kxd3 {[%emt 00:00:05]} Qg6+ {[%clk 00:00:18]} 52. Kc3 {[%emt 00:00:03] [%clk
00:00:14]} Qf6+ {[%emt 00:00:03] [%clk 00:00:18]} 53. Kb3 {[%emt 00:00:02] [%clk
00:00:13]} Qe6+ {[%emt 00:00:02] [%clk 00:00:18]} 54. Kb2 {[%clk 00:00:14]} Qf6+
{[%emt 00:00:02] [%clk 00:00:18]} 55. Qc3 {[%clk 00:00:15]} 1-0

[Site "Europe Echecs"]

[Event "Championnat d'Europe de Blitz"]
[Date "2024.12.09"]
[White "Guliyev, Namig"]
[Black "Kukk, Sander"]
[WhiteElo "2484"]
[BlackElo "2234"]
[Round "11.42"]
[Result "1-0"]
[TimeControl "180+2"]

1. e4 {[%clk 00:03:03]} g6 {[%emt 00:00:01] [%clk 00:03:03]} 2. d4 {[%emt
00:00:02] [%clk 00:03:04]} Bg7 {[%clk 00:03:04]} 3. Nf3 {[%clk 00:03:04]} d6
{[%emt 00:00:02] [%clk 00:03:05]} 4. h3 {[%emt 00:00:02] [%clk 00:03:04]} Nf6
{[%emt 00:00:01] [%clk 00:03:06]} 5. Nc3 {[%emt 00:00:01] [%clk 00:03:05]} O-O
{[%emt 00:00:02] [%clk 00:03:06]} 6. Be3 {[%emt 00:00:01] [%clk 00:03:05]} Nc6
{[%emt 00:00:07] [%clk 00:03:01]} 7. d5 {[%emt 00:00:03] [%clk 00:03:03]} Nb4
{[%emt 00:00:03] [%clk 00:03:01]} 8. a3 {[%emt 00:00:04] [%clk 00:03:01]} Na6
{[%clk 00:03:02]} 9. Bc4 {[%emt 00:00:10] [%clk 00:02:53]} Nc5 {[%emt 00:00:48]
[%clk 00:02:17]} 10. Bxc5 {[%emt 00:00:24] [%clk 00:02:31]} dxc5 {[%emt
00:00:01] [%clk 00:02:18]} 11. e5 {[%emt 00:00:03] [%clk 00:02:29]} Nd7 {[%emt
00:00:13] [%clk 00:02:07]} 12. Qe2 {[%emt 00:00:04] [%clk 00:02:28]} Nb6 {[%emt
00:00:12] [%clk 00:01:57]} 13. O-O {[%emt 00:00:02] [%clk 00:02:27]} e6 {[%emt
00:00:11] [%clk 00:01:49]} 14. dxe6 {[%emt 00:00:09] [%clk 00:02:20]} Bxe6
{[%emt 00:00:03] [%clk 00:01:48]} 15. Bxe6 {[%emt 00:00:04] [%clk 00:02:17]}
fxe6 {[%emt 00:00:01] [%clk 00:01:49]} 16. Ne4 {[%emt 00:00:02] [%clk 00:02:17]}
Qe7 {[%emt 00:00:21] [%clk 00:01:30]} 17. c4 {[%emt 00:00:03] [%clk 00:02:16]}
Nd7 {[%emt 00:00:07] [%clk 00:01:25]} 18. Ng3 {[%emt 00:00:09] [%clk 00:02:09]}
Rad8 {[%emt 00:00:08] [%clk 00:01:20]} 19. Qe4 {[%emt 00:00:04] [%clk 00:02:07]}
b6 {[%emt 00:00:49] [%clk 00:00:34]} 20. Rfe1 {[%emt 00:00:05] [%clk 00:02:03]}
Nb8 {[%emt 00:00:17] [%clk 00:00:19]} 21. h4 {[%emt 00:00:02] [%clk 00:02:02]}
Qf7 {[%emt 00:00:14] [%clk 00:00:08]} 22. b3 {[%emt 00:00:15] [%clk 00:01:49]}
h6 {[%emt 00:00:01] [%clk 00:00:09]} 23. Rad1 {[%emt 00:00:08] [%clk 00:01:42]}
a5 {[%emt 00:00:02] [%clk 00:00:09]} 24. Rxd8 {[%emt 00:00:11] [%clk 00:01:32]}
Rxd8 {[%clk 00:00:11]} 25. Nf1 {[%emt 00:00:21] [%clk 00:01:13]} Qf5 {[%emt
00:00:02] [%clk 00:00:11]} 26. Qb7 {[%emt 00:00:04]} Qf7 {[%clk 00:00:12]} 27.
Ne3 {[%emt 00:00:16] [%clk 00:00:58]} Qd7 {[%emt 00:00:01] [%clk 00:00:13]} 28.
Qe4 {[%emt 00:00:03] [%clk 00:00:58]} Qf7 {[%emt 00:00:03] [%clk 00:00:12]} 29.
g3 {[%emt 00:00:06] [%clk 00:00:53]} Bf8 {[%emt 00:00:04] [%clk 00:00:10]} 30.
Ng2 {[%emt 00:00:05] [%clk 00:00:50]} Be7 {[%emt 00:00:01] [%clk 00:00:12]} 31.
Nf4 {[%emt 00:00:17] [%clk 00:00:34]} Kg7 {[%clk 00:00:13]} 32. Kg2 {[%emt
00:00:03] [%clk 00:00:32]} c6 {[%emt 00:00:05] [%clk 00:00:11]} 33. Nh2 {[%emt
00:00:06] [%clk 00:00:28]} Rd4 {[%emt 00:00:06] [%clk 00:00:08]} 34. Qe3 {[%emt
00:00:03] [%clk 00:00:26]} Qf5 {[%emt 00:00:05] [%clk 00:00:05]} 35. Nf3 {[%emt
00:00:03] [%clk 00:00:25]} Rd7 {[%emt 00:00:02] [%clk 00:00:05]} 36. Qe2 {[%emt
00:00:04] [%clk 00:00:23]} Rd8 {[%emt 00:00:02] [%clk 00:00:06]} 37. Rd1 {[%emt
00:00:03] [%clk 00:00:21]} Rxd1 {[%emt 00:00:02] [%clk 00:00:06]} 38. Qxd1
{[%emt 00:00:01] [%clk 00:00:22]} Kf7 {[%emt 00:00:02] [%clk 00:00:06]} 39. Ne2
{[%emt 00:00:08] [%clk 00:00:15]} Qe4 {[%emt 00:00:02] [%clk 00:00:07]} 40. Nc3
{[%clk 00:00:16]} Qf5 {[%emt 00:00:03] [%clk 00:00:06]} 41. Na4 {[%emt 00:00:05]
[%clk 00:00:13]} b5 {[%emt 00:00:04] [%clk 00:00:05]} 42. Nb6 {[%emt 00:00:01]
[%clk 00:00:13]} Ke8 {[%emt 00:00:03] [%clk 00:00:04]} 43. Nc8 {[%emt 00:00:03]
[%clk 00:00:13]} a4 {[%emt 00:00:02] [%clk 00:00:05]} 44. cxb5 {[%emt 00:00:03]
[%clk 00:00:12]} cxb5 {[%clk 00:00:06]} 45. bxa4 {[%emt 00:00:01] [%clk
00:00:12]} bxa4 {[%clk 00:00:08]} 46. Qxa4+ {[%emt 00:00:01] [%clk 00:00:13]}
Kd8 {[%emt 00:00:01]} 47. Nb6 {[%emt 00:00:01] [%clk 00:00:13]} Kc7 {[%emt
00:00:03] [%clk 00:00:08]} 48. Qb5 {[%emt 00:00:02] [%clk 00:00:13]} Nc6 {[%emt
00:00:01] [%clk 00:00:09]} 49. Na8+ {[%emt 00:00:02] [%clk 00:00:13]} Kd7 {[%emt
00:00:02] [%clk 00:00:09]} 50. Qb7+ {[%clk 00:00:14]} Ke8 {[%clk 00:00:11]} 51.
Qxc6+ {[%emt 00:00:01] [%clk 00:00:14]} 1-0

[Site "Europe Echecs"]